[Event "Titled Tuesday Blitz October 31 Early 2023"]
[White "Yaksin, Oleg"]
[Black "djokovic74"]
[WhiteFideId "24105880"]
[WhiteElo "2538"]
[BlackElo "2708"]
[Result "0-1"]
[Round "11"]
[TimeControl "180+1"]
[Date "2023.10.31"]
[WhiteClock "0:00:04"]
[BlackClock "0:00:05"]
[Board "49"]

1. d4 {[%clk 0:03:00]}  e6 {[%clk 0:02:59]} 2. c4 {[%clk 0:02:56]}  Nf6 {[%clk 0:02:59]} 3. g3 {[%clk 0:02:56]}  d5 {[%clk 0:02:59]} 4. Nf3 {[%clk 0:02:56]}  Be7 {[%clk 0:02:59]} 5. Bg2 {[%clk 0:02:57]}  O-O {[%clk 0:03:00]} 6. O-O {[%clk 0:02:57]}  c6 {[%clk 0:03:00]} 7. Qc2 {[%clk 0:02:57]}  b6 {[%clk 0:03:00]} 8. Bf4 {[%clk 0:02:57]}  Bb7 {[%clk 0:03:00]} 9. Rd1 {[%clk 0:02:56]}  Nh5 {[%clk 0:02:56]} 10. Be3 {[%clk 0:02:52]}  Nf6 {[%clk 0:02:55]} 11. Bf4 {[%clk 0:02:48]}  Nbd7 {[%clk 0:02:52]} 12. Nc3 {[%clk 0:02:47]}  Nh5 {[%clk 0:02:49]} 13. Bc1 {[%clk 0:02:34]}  f5 {[%clk 0:02:48]} 14. Ne5 {[%clk 0:02:23]}  Nhf6 {[%clk 0:02:43]} 15. f4 {[%clk 0:02:19]}  Rc8 {[%clk 0:02:37]} 16. Qa4 {[%clk 0:02:10]}  a6 {[%clk 0:02:32]} 17. cxd5 {[%clk 0:02:04]}  exd5 {[%clk 0:02:26]} 18. h3 {[%clk 0:02:02]}  Ne4 {[%clk 0:02:16]} 19. Nxe4 {[%clk 0:01:57]}  fxe4 {[%clk 0:02:15]} 20. Be3 {[%clk 0:01:52]}  Nxe5 {[%clk 0:01:58]} 21. dxe5 {[%clk 0:01:51]}  Qc7 {[%clk 0:01:58]} 22. Qb3 {[%clk 0:01:48]}  Bc5 {[%clk 0:01:46]} 23. Bxc5 {[%clk 0:01:20]}  bxc5 {[%clk 0:01:46]} 24. Rac1 {[%clk 0:01:07]}  c4 {[%clk 0:01:43]} 25. Qc3 {[%clk 0:01:04]}  Qb6+ {[%clk 0:01:19]} 26. e3 {[%clk 0:01:03]}  c5 {[%clk 0:01:19]} 27. Bf1 {[%clk 0:00:57]}  a5 {[%clk 0:00:53]} 28. Rd2 {[%clk 0:00:55]}  Rb8 {[%clk 0:00:44]} 29. Rcd1 {[%clk 0:00:53]}  h6 {[%clk 0:00:40]} 30. Rxd5 {[%clk 0:00:27]}  Bxd5 {[%clk 0:00:40]} 31. Rxd5 {[%clk 0:00:28]}  Qxb2 {[%clk 0:00:40]} 32. Qxc4 {[%clk 0:00:28]}  Kh8 {[%clk 0:00:32]} 33. Rxc5 {[%clk 0:00:24]}  Qd2 {[%clk 0:00:15]} 34. Qc3 {[%clk 0:00:17]}  Qd1 {[%clk 0:00:10]} 35. Qc2 {[%clk 0:00:08]}  Qf3 {[%clk 0:00:06]} 36. Qf2 {[%clk 0:00:06]}  Qh5 {[%clk 0:00:06]} 37. Rxa5 {[%clk 0:00:05]}  Rb1 {[%clk 0:00:06]} 38. Rd5 {[%clk 0:00:05]}  Rfb8 {[%clk 0:00:05]} 39. Rd2 {[%clk 0:00:05]}  Rc1 {[%clk 0:00:03]} 40. Kg2 {[%clk 0:00:05]}  Rbb1 {[%clk 0:00:02]} 41. Be2 {[%clk 0:00:05]}  Qe8 {[%clk 0:00:02]} 42. g4 {[%clk 0:00:04]}  Qe7 {[%clk 0:00:01]} 43. Kg3 {[%clk 0:00:04]}  Rg1+ {[%clk 0:00:01]} 44. Kh2 {[%clk 0:00:04]}  Rh1+ {[%clk 0:00:01]} 45. Kg2 {[%clk 0:00:05]}  Kh7 {[%clk 0:00:01]} 46. Qg3 {[%clk 0:00:03]}  Rhg1+ {[%clk 0:00:02]} 47. Kf2 {[%clk 0:00:03]}  Rxg3 {[%clk 0:00:03]} 48. Kxg3 {[%clk 0:00:04]}  Rg1+ {[%clk 0:00:03]} 49. Kh2 {[%clk 0:00:05]}  Rb1 {[%clk 0:00:04]} 50. Kg3 {[%clk 0:00:05]}  Rc1 {[%clk 0:00:04]} 51. h4 {[%clk 0:00:03]}  Qc5 {[%clk 0:00:04]} 52. Kf2 {[%clk 0:00:02]}  Rc3 {[%clk 0:00:05]} 53. Rd4 {[%clk 0:00:02]}  Rc2 {[%clk 0:00:04]} 54. Rxe4 {[%clk 0:00:03]}  Qb5 {[%clk 0:00:04]} 55. Kg3 {[%clk 0:00:03]}  Qxe2 {[%clk 0:00:04]} 56. f5 {[%clk 0:00:04]}  Qf2+ {[%clk 0:00:04]} 57. Kh3 {[%clk 0:00:04]}  Qg2# {[%clk 0:00:05]} 0-1


[Site "https://www.chess.com"]

[Event "Titled Tuesday Blitz October 31 Early 2023"]
[White "Alinasab, Mobina"]
[Black "Barrientos, Sergio E"]
[WhiteFideId "12528897"]
[BlackFideId "4401824"]
[WhiteElo "2537"]
[BlackElo "2674"]
[Result "0-1"]
[Round "11"]
[TimeControl "180+1"]
[Date "2023.10.31"]
[WhiteClock "0:00:00"]
[BlackClock "0:00:15"]
[Board "51"]

1. e4 {[%clk 0:03:00]}  e5 {[%clk 0:02:58]} 2. Bc4 {[%clk 0:02:58]}  Nc6 {[%clk 0:02:57]} 3. Nc3 {[%clk 0:02:57]}  Nf6 {[%clk 0:02:57]} 4. d3 {[%clk 0:02:56]}  Bc5 {[%clk 0:02:54]} 5. f4 {[%clk 0:02:55]}  d6 {[%clk 0:02:50]} 6. f5 {[%clk 0:02:44]}  Na5 {[%clk 0:02:46]} 7. Qf3 {[%clk 0:02:38]}  c6 {[%clk 0:02:41]} 8. a3 {[%clk 0:02:33]}  Nxc4 {[%clk 0:02:37]} 9. dxc4 {[%clk 0:02:32]}  h6 {[%clk 0:02:33]} 10. Nge2 {[%clk 0:02:27]}  a5 {[%clk 0:02:33]} 11. Be3 {[%clk 0:02:23]}  Nd7 {[%clk 0:02:19]} 12. Bxc5 {[%clk 0:02:07]}  Nxc5 {[%clk 0:02:18]} 13. O-O {[%clk 0:02:07]}  O-O {[%clk 0:02:12]} 14. Kh1 {[%clk 0:02:05]}  b6 {[%clk 0:02:06]} 15. f6 {[%clk 0:01:36]}  Qxf6 {[%clk 0:01:58]} 16. Qxf6 {[%clk 0:01:32]}  gxf6 {[%clk 0:01:58]} 17. Rxf6 {[%clk 0:01:33]}  Be6 {[%clk 0:01:58]} 18. Rxh6 {[%clk 0:01:25]}  Kg7 {[%clk 0:01:58]} 19. Rh4 {[%clk 0:01:16]}  Bxc4 {[%clk 0:01:56]} 20. Ng3 {[%clk 0:01:16]}  Be6 {[%clk 0:01:44]} 21. Rf1 {[%clk 0:00:49]}  Rh8 {[%clk 0:01:39]} 22. Nh5+ {[%clk 0:00:46]}  Kg6 {[%clk 0:01:26]} 23. g4 {[%clk 0:00:12]}  Kg5 {[%clk 0:01:23]} 24. Rh3 {[%clk 0:00:11]}  Bxg4 {[%clk 0:01:21]} 25. Rg3 {[%clk 0:00:11]}  Kxh5 {[%clk 0:01:10]} 26. Rxf7 {[%clk 0:00:08]}  Rag8 {[%clk 0:00:55]} 27. Kg2 {[%clk 0:00:04]}  Be6 {[%clk 0:00:48]} 28. Rc7 {[%clk 0:00:04]}  Rxg3+ {[%clk 0:00:33]} 29. hxg3 {[%clk 0:00:05]}  Rc8 {[%clk 0:00:33]} 30. Rg7 {[%clk 0:00:04]}  Kh6 {[%clk 0:00:31]} 31. Re7 {[%clk 0:00:04]}  Kg6 {[%clk 0:00:28]} 32. Ra7 {[%clk 0:00:02]}  Kf6 {[%clk 0:00:24]} 33. b4 {[%clk 0:00:02]}  axb4 {[%clk 0:00:24]} 34. axb4 {[%clk 0:00:03]}  Nd7 {[%clk 0:00:25]} 35. Rb7 {[%clk 0:00:03]}  b5 {[%clk 0:00:23]} 36. Ra7 {[%clk 0:00:02]}  Ke7 {[%clk 0:00:20]} 37. Nd1 {[%clk 0:00:02]}  Kd8 {[%clk 0:00:16]} 38. Ne3 {[%clk 0:00:03]}  Rc7 {[%clk 0:00:16]} 39. Ra8+ {[%clk 0:00:03]}  Ke7 {[%clk 0:00:16]} 40. Kf3 {[%clk 0:00:03]}  Nb6 {[%clk 0:00:16]} 41. Rh8 {[%clk 0:00:01]}  Nc4 {[%clk 0:00:16]} 42. Ng2 {[%clk 0:00:01]}  Rc8 {[%clk 0:00:16]} 43. Rh7+ {[%clk 0:00:01]}  Kf6 {[%clk 0:00:16]} 44. Nh4 {[%clk 0:00:02]}  Rf8 {[%clk 0:00:15]} 45. Kg2 {[%clk 0:00:00]}  Rg8 {[%clk 0:00:15]} 0-1


[Site "https://www.chess.com"]

[Event "Titled Tuesday Blitz October 31 Early 2023"]
[White "Nurmanova, Alua"]
[Black "Panda Sambit"]
[WhiteFideId "13729390"]
[BlackFideId "25091794"]
[WhiteElo "2635"]
[BlackElo "2496"]
[Result "1-0"]
[Round "11"]
[TimeControl "180+1"]
[Date "2023.10.31"]
[WhiteClock "0:01:02"]
[BlackClock "0:00:00"]
[Board "53"]

1. e4 {[%clk 0:03:00]}  c6 {[%clk 0:02:57]} 2. d3 {[%clk 0:03:01]}  d5 {[%clk 0:02:55]} 3. Nd2 {[%clk 0:03:01]}  e5 {[%clk 0:02:56]} 4. Ngf3 {[%clk 0:03:01]}  Bd6 {[%clk 0:02:56]} 5. g3 {[%clk 0:03:02]}  Nf6 {[%clk 0:02:55]} 6. Bg2 {[%clk 0:03:02]}  O-O {[%clk 0:02:56]} 7. O-O {[%clk 0:03:03]}  Re8 {[%clk 0:02:56]} 8. Re1 {[%clk 0:03:03]}  Nbd7 {[%clk 0:02:57]} 9. c3 {[%clk 0:03:02]}  a5 {[%clk 0:02:57]} 10. Qc2 {[%clk 0:03:00]}  Nc5 {[%clk 0:02:55]} 11. h3 {[%clk 0:02:58]}  b6 {[%clk 0:02:42]} 12. b4 {[%clk 0:02:35]}  Ncd7 {[%clk 0:02:29]} 13. Bb2 {[%clk 0:02:27]}  axb4 {[%clk 0:02:24]} 14. cxb4 {[%clk 0:02:28]}  Bb7 {[%clk 0:02:24]} 15. a3 {[%clk 0:02:26]}  c5 {[%clk 0:02:23]} 16. bxc5 {[%clk 0:02:22]}  bxc5 {[%clk 0:02:23]} 17. exd5 {[%clk 0:02:22]}  Bxd5 {[%clk 0:02:24]} 18. Nc4 {[%clk 0:02:21]}  Bc7 {[%clk 0:02:04]} 19. a4 {[%clk 0:02:14]}  Ra6 {[%clk 0:01:55]} 20. Ng5 {[%clk 0:02:04]}  Bxg2 {[%clk 0:01:54]} 21. Kxg2 {[%clk 0:02:05]}  Qa8+ {[%clk 0:01:53]} 22. Kg1 {[%clk 0:02:04]}  Nd5 {[%clk 0:01:51]} 23. d4 {[%clk 0:02:00]}  g6 {[%clk 0:01:49]} 24. dxe5 {[%clk 0:01:59]}  Nb4 {[%clk 0:01:43]} 25. Qc3 {[%clk 0:01:58]}  Nd5 {[%clk 0:01:38]} 26. Qd2 {[%clk 0:01:57]}  Nf8 {[%clk 0:01:25]} 27. Ne4 {[%clk 0:01:45]}  Rd8 {[%clk 0:01:07]} 28. Qh6 {[%clk 0:01:36]}  Rb8 {[%clk 0:00:20]} 29. e6 {[%clk 0:01:26]}  Rxb2 {[%clk 0:00:14]} 30. exf7+ {[%clk 0:01:25]}  Kxf7 {[%clk 0:00:15]} 31. Nxb2 {[%clk 0:01:16]}  Kg8 {[%clk 0:00:07]} 32. Rad1 {[%clk 0:01:13]}  Be5 {[%clk 0:00:06]} 33. Nxc5 {[%clk 0:01:07]}  Bxb2 {[%clk 0:00:04]} 34. Nxa6 {[%clk 0:01:07]}  Bg7 {[%clk 0:00:01]} 35. Qd2 {[%clk 0:01:06]}  Qxa6 {[%clk 0:00:01]} 36. Qxd5+ {[%clk 0:01:06]}  Kh8 {[%clk 0:00:02]} 37. Re8 {[%clk 0:01:06]}  Qxa4 {[%clk 0:00:02]} 38. Qd8 {[%clk 0:01:04]}  Qb4 {[%clk 0:00:01]} 39. Rde1 {[%clk 0:01:03]}  h6 {[%clk 0:00:00]} 40. Qe7 {[%clk 0:01:02]} 1-0


[Site "https://www.chess.com"]

[Event "Titled Tuesday Blitz October 31 Early 2023"]
[White "Gontcharov, Vladislav"]
[Black "Fernandez, Michael"]
[WhiteFideId "4123492"]
[BlackFideId "5803560"]
[WhiteElo "2582"]
[BlackElo "2430"]
[Result "0-1"]
[Round "11"]
[TimeControl "180+1"]
[Date "2023.10.31"]
[WhiteClock "0:00:11"]
[BlackClock "0:00:21"]
[Board "56"]

1. d4 {[%clk 0:03:00]}  b5 {[%clk 0:02:58]} 2. a4 {[%clk 0:02:56]}  b4 {[%clk 0:02:57]} 3. e4 {[%clk 0:02:54]}  Bb7 {[%clk 0:02:54]} 4. Bd3 {[%clk 0:02:53]}  a5 {[%clk 0:02:53]} 5. Nf3 {[%clk 0:02:51]}  e6 {[%clk 0:02:48]} 6. c3 {[%clk 0:02:47]}  Nf6 {[%clk 0:02:46]} 7. Qe2 {[%clk 0:02:47]}  d5 {[%clk 0:02:38]} 8. e5 {[%clk 0:02:26]}  Nfd7 {[%clk 0:02:38]} 9. O-O {[%clk 0:02:24]}  c5 {[%clk 0:02:35]} 10. Nbd2 {[%clk 0:02:08]}  Nc6 {[%clk 0:02:30]} 11. Re1 {[%clk 0:02:05]}  Qb6 {[%clk 0:02:28]} 12. dxc5 {[%clk 0:01:41]}  Nxc5 {[%clk 0:02:10]} 13. Bb5 {[%clk 0:01:41]}  Be7 {[%clk 0:02:05]} 14. c4 {[%clk 0:01:37]}  O-O {[%clk 0:01:53]} 15. cxd5 {[%clk 0:01:38]}  exd5 {[%clk 0:01:54]} 16. Nf1 {[%clk 0:01:29]}  Nb3 {[%clk 0:01:31]} 17. Rb1 {[%clk 0:01:13]}  Nbd4 {[%clk 0:01:31]} 18. Qd3 {[%clk 0:01:09]}  Nxf3+ {[%clk 0:01:28]} 19. gxf3 {[%clk 0:01:01]}  Qd4 {[%clk 0:01:28]} 20. Qe2 {[%clk 0:00:49]}  Qh4 {[%clk 0:01:11]} 21. Ng3 {[%clk 0:00:47]}  Bg5 {[%clk 0:01:05]} 22. Be3 {[%clk 0:00:32]}  Rfe8 {[%clk 0:00:56]} 23. Bxc6 {[%clk 0:00:26]}  Bxc6 {[%clk 0:00:54]} 24. Bd4 {[%clk 0:00:27]}  Qxd4 {[%clk 0:00:52]} 25. b3 {[%clk 0:00:26]}  Bf4 {[%clk 0:00:49]} 26. Qc2 {[%clk 0:00:20]}  Rac8 {[%clk 0:00:43]} 27. Nf5 {[%clk 0:00:19]}  Qc3 {[%clk 0:00:39]} 28. Qxc3 {[%clk 0:00:17]}  bxc3 {[%clk 0:00:40]} 29. Nd6 {[%clk 0:00:17]}  c2 {[%clk 0:00:40]} 30. Rbc1 {[%clk 0:00:15]}  Bxc1 {[%clk 0:00:34]} 31. Rxc1 {[%clk 0:00:16]}  Bd7 {[%clk 0:00:31]} 32. Nxe8 {[%clk 0:00:16]}  Bxe8 {[%clk 0:00:32]} 33. Kf1 {[%clk 0:00:16]}  Rc3 {[%clk 0:00:28]} 34. Ke2 {[%clk 0:00:16]}  d4 {[%clk 0:00:27]} 35. Kd2 {[%clk 0:00:16]}  f6 {[%clk 0:00:25]} 36. exf6 {[%clk 0:00:15]}  gxf6 {[%clk 0:00:26]} 37. Rxc2 {[%clk 0:00:15]}  Rxc2+ {[%clk 0:00:21]} 38. Kxc2 {[%clk 0:00:16]}  Bg6+ {[%clk 0:00:21]} 39. Kd2 {[%clk 0:00:11]}  Kf7 {[%clk 0:00:21]} 0-1


[Site "https://www.chess.com"]

[Event "Titled Tuesday Blitz October 31 Early 2023"]
[White "Hua, Lefong"]
[Black "HeroRubiksCube"]
[WhiteFideId "2602253"]
[WhiteElo "2704"]
[BlackElo "2502"]
[Result "0-1"]
[Round "11"]
[TimeControl "180+1"]
[Date "2023.10.31"]
[WhiteClock "0:00:00"]
[BlackClock "0:00:15"]
[Board "58"]

1. d4 {[%clk 0:03:00]}  Nf6 {[%clk 0:02:59]} 2. c4 {[%clk 0:03:01]}  c5 {[%clk 0:02:59]} 3. d5 {[%clk 0:03:01]}  b5 {[%clk 0:02:59]} 4. cxb5 {[%clk 0:03:01]}  a6 {[%clk 0:03:00]} 5. b6 {[%clk 0:03:02]}  g6 {[%clk 0:02:59]} 6. Nc3 {[%clk 0:03:03]}  Bg7 {[%clk 0:02:58]} 7. a4 {[%clk 0:03:03]}  Qxb6 {[%clk 0:02:58]} 8. a5 {[%clk 0:03:04]}  Qb7 {[%clk 0:02:56]} 9. e4 {[%clk 0:03:04]}  O-O {[%clk 0:02:56]} 10. Bc4 {[%clk 0:03:03]}  e6 {[%clk 0:02:54]} 11. Nge2 {[%clk 0:03:02]}  exd5 {[%clk 0:02:50]} 12. exd5 {[%clk 0:03:01]}  d6 {[%clk 0:02:49]} 13. O-O {[%clk 0:03:01]}  Nbd7 {[%clk 0:02:48]} 14. Bf4 {[%clk 0:03:00]}  Qc7 {[%clk 0:02:45]} 15. h3 {[%clk 0:02:56]}  Nh5 {[%clk 0:02:39]} 16. Bh2 {[%clk 0:02:54]}  Ne5 {[%clk 0:02:35]} 17. b3 {[%clk 0:02:53]}  Bd7 {[%clk 0:02:25]} 18. Qd2 {[%clk 0:02:47]}  Rfe8 {[%clk 0:02:22]} 19. Ra2 {[%clk 0:02:39]}  Rab8 {[%clk 0:02:16]} 20. Na4 {[%clk 0:02:30]}  Bxa4 {[%clk 0:02:03]} 21. Rxa4 {[%clk 0:02:28]}  Nxc4 {[%clk 0:02:02]} 22. Rxc4 {[%clk 0:02:22]}  Rxb3 {[%clk 0:02:00]} 23. Nf4 {[%clk 0:02:14]}  Rb2 {[%clk 0:01:42]} 24. Qc1 {[%clk 0:02:03]}  Nxf4 {[%clk 0:01:36]} 25. Bxf4 {[%clk 0:02:04]}  Ree2 {[%clk 0:01:33]} 26. Ra4 {[%clk 0:01:42]}  Qe7 {[%clk 0:01:28]} 27. Bg3 {[%clk 0:01:36]}  Bd4 {[%clk 0:01:26]} 28. Qc4 {[%clk 0:01:27]}  Qb7 {[%clk 0:00:59]} 29. Ra3 {[%clk 0:01:12]}  Qb5 {[%clk 0:00:57]} 30. Qxb5 {[%clk 0:01:08]}  Rxb5 {[%clk 0:00:58]} 31. Bxd6 {[%clk 0:01:07]}  Rbb2 {[%clk 0:00:57]} 32. Bg3 {[%clk 0:01:06]}  Kf8 {[%clk 0:00:55]} 33. d6 {[%clk 0:01:00]}  Ke8 {[%clk 0:00:55]} 34. Rd3 {[%clk 0:00:54]}  Kd7 {[%clk 0:00:52]} 35. h4 {[%clk 0:00:55]}  f5 {[%clk 0:00:49]} 36. Rf3 {[%clk 0:00:52]}  c4 {[%clk 0:00:45]} 37. Rc1 {[%clk 0:00:48]}  c3 {[%clk 0:00:38]} 38. Rcxc3 {[%clk 0:00:45]}  Bxc3 {[%clk 0:00:39]} 39. Rxc3 {[%clk 0:00:46]}  Rec2 {[%clk 0:00:36]} 40. Re3 {[%clk 0:00:45]}  f4 {[%clk 0:00:34]} 41. Bxf4 {[%clk 0:00:41]}  Rxf2 {[%clk 0:00:35]} 42. Re7+ {[%clk 0:00:41]}  Kd8 {[%clk 0:00:35]} 43. Bg5 {[%clk 0:00:29]}  Rxg2+ {[%clk 0:00:34]} 44. Kf1 {[%clk 0:00:28]}  h6 {[%clk 0:00:24]} 45. Bxh6 {[%clk 0:00:12]}  Rh2 {[%clk 0:00:25]} 46. Kg1 {[%clk 0:00:11]}  Rxh4 {[%clk 0:00:23]} 47. Bg7 {[%clk 0:00:09]}  Rd2 {[%clk 0:00:21]} 48. Bf6 {[%clk 0:00:08]}  Rg4+ {[%clk 0:00:21]} 49. Kh1 {[%clk 0:00:08]}  Rxd6 {[%clk 0:00:21]} 50. Re4+ {[%clk 0:00:04]}  Rxf6 {[%clk 0:00:20]} 51. Rxg4 {[%clk 0:00:05]}  Kd7 {[%clk 0:00:19]} 52. Rg5 {[%clk 0:00:04]}  Kc6 {[%clk 0:00:15]} 53. Kg2 {[%clk 0:00:04]}  Rf5 {[%clk 0:00:15]} 54. Rxg6+ {[%clk 0:00:00]}  Kb5 {[%clk 0:00:15]} 0-1


[Site "https://www.chess.com"]

[Event "Titled Tuesday Blitz October 31 Early 2023"]
[White "Rosen, Eric"]
[Black "Buchenau, Frank"]
[WhiteFideId "2032562"]
[BlackFideId "4604350"]
[WhiteElo "2667"]
[BlackElo "2471"]
[Result "1-0"]
[Round "11"]
[TimeControl "180+1"]
[Date "2023.10.31"]
[WhiteClock "0:01:02"]
[BlackClock "0:00:00"]
[Board "60"]

1. e4 {[%clk 0:03:00]}  e6 {[%clk 0:02:44]} 2. f4 {[%clk 0:03:00]}  d5 {[%clk 0:02:43]} 3. e5 {[%clk 0:03:00]}  c5 {[%clk 0:02:44]} 4. Nf3 {[%clk 0:03:00]}  Nc6 {[%clk 0:02:44]} 5. c3 {[%clk 0:02:59]}  d4 {[%clk 0:02:42]} 6. Na3 {[%clk 0:02:59]}  Nge7 {[%clk 0:02:35]} 7. Bd3 {[%clk 0:02:59]}  Nf5 {[%clk 0:02:32]} 8. O-O {[%clk 0:02:58]}  Be7 {[%clk 0:02:20]} 9. Be4 {[%clk 0:02:56]}  h5 {[%clk 0:02:05]} 10. g3 {[%clk 0:02:52]}  O-O {[%clk 0:01:55]} 11. Qe2 {[%clk 0:02:50]}  Bd7 {[%clk 0:01:50]} 12. d3 {[%clk 0:02:49]}  Rb8 {[%clk 0:01:36]} 13. c4 {[%clk 0:02:14]}  a6 {[%clk 0:01:33]} 14. Kg2 {[%clk 0:02:15]}  b5 {[%clk 0:01:33]} 15. h3 {[%clk 0:02:15]}  g6 {[%clk 0:01:08]} 16. g4 {[%clk 0:01:51]}  Ng7 {[%clk 0:01:07]} 17. Bd2 {[%clk 0:01:37]}  Nb4 {[%clk 0:01:03]} 18. Bxb4 {[%clk 0:01:20]}  cxb4 {[%clk 0:01:03]} 19. Nc2 {[%clk 0:01:21]}  bxc4 {[%clk 0:00:20]} 20. dxc4 {[%clk 0:01:18]}  Bc5 {[%clk 0:00:10]} 21. Rad1 {[%clk 0:01:17]}  Qe7 {[%clk 0:00:04]} 22. b3 {[%clk 0:01:15]}  a5 {[%clk 0:00:04]} 23. Ncxd4 {[%clk 0:01:15]}  Rfd8 {[%clk 0:00:03]} 24. Rd2 {[%clk 0:01:09]}  a4 {[%clk 0:00:02]} 25. Rfd1 {[%clk 0:01:09]}  axb3 {[%clk 0:00:02]} 26. axb3 {[%clk 0:01:10]}  Be8 {[%clk 0:00:00]} 27. Kg3 {[%clk 0:01:02]} 1-0


[Site "https://www.chess.com"]

[Event "Titled Tuesday Blitz October 31 Early 2023"]
[White "Jakubowski, Krzysztof"]
[Black "Shuvalov, Evgenij"]
[WhiteFideId "1112848"]
[BlackFideId "4187237"]
[WhiteElo "2658"]
[BlackElo "2465"]
[Result "1-0"]
[Round "11"]
[TimeControl "180+1"]
[Date "2023.10.31"]
[WhiteClock "0:00:40"]
[BlackClock "0:00:26"]
[Board "61"]

1. e4 {[%clk 0:03:00]}  e6 {[%clk 0:02:59]} 2. d4 {[%clk 0:03:00]}  d5 {[%clk 0:03:00]} 3. Nc3 {[%clk 0:02:59]}  Bb4 {[%clk 0:02:59]} 4. e5 {[%clk 0:02:59]}  c5 {[%clk 0:02:59]} 5. a3 {[%clk 0:02:59]}  Bxc3+ {[%clk 0:02:59]} 6. bxc3 {[%clk 0:02:59]}  Ne7 {[%clk 0:03:00]} 7. Nf3 {[%clk 0:02:58]}  b6 {[%clk 0:02:58]} 8. Bb5+ {[%clk 0:02:58]}  Bd7 {[%clk 0:02:58]} 9. Bd3 {[%clk 0:02:57]}  Ba4 {[%clk 0:02:56]} 10. h4 {[%clk 0:02:56]}  h6 {[%clk 0:02:56]} 11. h5 {[%clk 0:02:55]}  c4 {[%clk 0:02:54]} 12. Be2 {[%clk 0:02:55]}  Na6 {[%clk 0:02:55]} 13. Bf4 {[%clk 0:02:53]}  Nc7 {[%clk 0:02:54]} 14. Qd2 {[%clk 0:02:53]}  Kd7 {[%clk 0:02:54]} 15. Nh2 {[%clk 0:02:50]}  Qg8 {[%clk 0:02:53]} 16. Bg4 {[%clk 0:02:47]}  Qh7 {[%clk 0:02:53]} 17. Ra2 {[%clk 0:02:46]}  Kc6 {[%clk 0:02:49]} 18. O-O {[%clk 0:02:44]}  Kb7 {[%clk 0:02:50]} 19. Bh3 {[%clk 0:02:38]}  Nc6 {[%clk 0:02:47]} 20. Ng4 {[%clk 0:02:35]}  a5 {[%clk 0:02:19]} 21. Bg3 {[%clk 0:02:29]}  Ka6 {[%clk 0:02:18]} 22. Qc1 {[%clk 0:02:23]}  Nb5 {[%clk 0:02:15]} 23. Qd2 {[%clk 0:02:13]}  Raf8 {[%clk 0:02:02]} 24. Ne3 {[%clk 0:02:11]}  Ne7 {[%clk 0:01:51]} 25. Kh1 {[%clk 0:02:08]}  Nc7 {[%clk 0:01:47]} 26. Bh2 {[%clk 0:02:04]}  Nf5 {[%clk 0:01:41]} 27. Ng4 {[%clk 0:02:00]}  Nb5 {[%clk 0:01:37]} 28. Raa1 {[%clk 0:01:55]}  Rc8 {[%clk 0:01:35]} 29. f4 {[%clk 0:01:50]}  Qg8 {[%clk 0:01:34]} 30. Nf2 {[%clk 0:01:42]}  Qd8 {[%clk 0:01:33]} 31. g4 {[%clk 0:01:41]}  Ne7 {[%clk 0:01:27]} 32. f5 {[%clk 0:01:39]}  Nc6 {[%clk 0:01:25]} 33. Nd1 {[%clk 0:01:35]}  Qh4 {[%clk 0:01:22]} 34. Kg2 {[%clk 0:01:34]}  Rcf8 {[%clk 0:01:20]} 35. Bg3 {[%clk 0:01:33]}  Qd8 {[%clk 0:01:19]} 36. Nb2 {[%clk 0:01:32]}  Ncxd4 {[%clk 0:01:04]} 37. Nxa4 {[%clk 0:01:32]}  Nc6 {[%clk 0:01:02]} 38. Rfb1 {[%clk 0:01:29]}  d4 {[%clk 0:01:02]} 39. cxd4 {[%clk 0:01:25]}  Qd5+ {[%clk 0:00:57]} 40. Kf2 {[%clk 0:01:13]}  Qxd4+ {[%clk 0:00:50]} 41. Qxd4 {[%clk 0:01:12]}  Ncxd4 {[%clk 0:00:51]} 42. Ra2 {[%clk 0:01:07]}  g6 {[%clk 0:00:48]} 43. f6 {[%clk 0:01:01]}  gxh5 {[%clk 0:00:48]} 44. gxh5 {[%clk 0:01:00]}  Rhg8 {[%clk 0:00:48]} 45. Bf4 {[%clk 0:01:00]}  Rd8 {[%clk 0:00:45]} 46. Rab2 {[%clk 0:00:57]}  Rd5 {[%clk 0:00:45]} 47. Bg2 {[%clk 0:00:55]}  Rdd8 {[%clk 0:00:40]} 48. Be4 {[%clk 0:00:55]}  Rg4 {[%clk 0:00:38]} 49. Ke3 {[%clk 0:00:54]}  Rh4 {[%clk 0:00:37]} 50. Bg2 {[%clk 0:00:49]}  Rg8 {[%clk 0:00:36]} 51. Bf1 {[%clk 0:00:48]}  Rgg4 {[%clk 0:00:35]} 52. Bxc4 {[%clk 0:00:41]}  Rxf4 {[%clk 0:00:35]} 53. Bxb5+ {[%clk 0:00:40]}  Nxb5 {[%clk 0:00:33]} 54. Rxb5 {[%clk 0:00:41]}  Re4+ {[%clk 0:00:30]} 55. Kd3 {[%clk 0:00:40]}  Rd4+ {[%clk 0:00:31]} 56. Kc3 {[%clk 0:00:40]}  Rxa4 {[%clk 0:00:31]} 57. Rxb6+ {[%clk 0:00:39]}  Ka7 {[%clk 0:00:31]} 58. Rb7+ {[%clk 0:00:40]}  Ka8 {[%clk 0:00:31]} 59. Rb8+ {[%clk 0:00:40]}  Ka7 {[%clk 0:00:32]} 60. R1b7+ {[%clk 0:00:41]}  Ka6 {[%clk 0:00:32]} 61. Rb6+ {[%clk 0:00:41]}  Ka7 {[%clk 0:00:32]} 62. R8b7+ {[%clk 0:00:42]}  Ka8 {[%clk 0:00:32]} 63. Rxf7 {[%clk 0:00:42]}  Rxa3+ {[%clk 0:00:28]} 64. Kb2 {[%clk 0:00:41]}  Re3 {[%clk 0:00:27]} 65. Rxe6 {[%clk 0:00:40]}  Rhe4 {[%clk 0:00:26]} 66. Re8# {[%clk 0:00:40]} 1-0


[Site "https://www.chess.com"]

[Event "Titled Tuesday Blitz October 31 Early 2023"]
[White "FoxOnTheRun97"]
[Black "Kostiukov, Alexandr"]
[BlackFideId "14108100"]
[WhiteElo "2600"]
[BlackElo "2428"]
[Result "1-0"]
[Round "11"]
[TimeControl "180+1"]
[Date "2023.10.31"]
[WhiteClock "0:00:09"]
[BlackClock "0:00:00"]
[Board "65"]

1. d4 {[%clk 0:03:00]}  g6 {[%clk 0:02:59]} 2. e4 {[%clk 0:02:58]}  c5 {[%clk 0:02:58]} 3. c3 {[%clk 0:02:56]}  cxd4 {[%clk 0:02:58]} 4. cxd4 {[%clk 0:02:56]}  d5 {[%clk 0:02:58]} 5. exd5 {[%clk 0:02:53]}  Nf6 {[%clk 0:02:58]} 6. Nc3 {[%clk 0:02:53]}  Nxd5 {[%clk 0:02:58]} 7. Bb5+ {[%clk 0:02:51]}  Nc6 {[%clk 0:02:57]} 8. Qa4 {[%clk 0:02:51]}  Qd6 {[%clk 0:01:59]} 9. Nge2 {[%clk 0:02:21]}  Bd7 {[%clk 0:01:37]} 10. O-O {[%clk 0:02:10]}  Bg7 {[%clk 0:01:26]} 11. Ne4 {[%clk 0:01:24]}  Qb4 {[%clk 0:01:14]} 12. Nc5 {[%clk 0:01:23]}  Qxa4 {[%clk 0:01:09]} 13. Bxa4 {[%clk 0:01:22]}  O-O-O {[%clk 0:00:52]} 14. Nxd7 {[%clk 0:01:08]}  Rxd7 {[%clk 0:00:52]} 15. Be3 {[%clk 0:01:06]}  e5 {[%clk 0:00:25]} 16. Rac1 {[%clk 0:00:56]}  Nxe3 {[%clk 0:00:18]} 17. fxe3 {[%clk 0:00:55]}  Kc7 {[%clk 0:00:18]} 18. d5 {[%clk 0:00:44]}  Rxd5 {[%clk 0:00:18]} 19. Rxf7+ {[%clk 0:00:45]}  Rd7 {[%clk 0:00:18]} 20. Rcf1 {[%clk 0:00:42]}  Rd8 {[%clk 0:00:17]} 21. Nc3 {[%clk 0:00:33]}  Rxf7 {[%clk 0:00:15]} 22. Rxf7+ {[%clk 0:00:34]}  Rd7 {[%clk 0:00:16]} 23. Rxd7+ {[%clk 0:00:29]}  Kxd7 {[%clk 0:00:17]} 24. Kf2 {[%clk 0:00:29]}  Kd6 {[%clk 0:00:14]} 25. Kf3 {[%clk 0:00:19]}  Nb4 {[%clk 0:00:10]} 26. Bb3 {[%clk 0:00:15]}  a6 {[%clk 0:00:09]} 27. Ne4+ {[%clk 0:00:14]}  Ke7 {[%clk 0:00:09]} 28. Ke2 {[%clk 0:00:14]}  Nc6 {[%clk 0:00:07]} 29. Nc5 {[%clk 0:00:14]}  Nd8 {[%clk 0:00:08]} 30. Bd5 {[%clk 0:00:13]}  Kd6 {[%clk 0:00:07]} 31. Nxb7+ {[%clk 0:00:12]}  Kxd5 {[%clk 0:00:05]} 32. Nxd8 {[%clk 0:00:12]}  Bf8 {[%clk 0:00:02]} 33. Nf7 {[%clk 0:00:11]}  Be7 {[%clk 0:00:00]} 34. Nh6 {[%clk 0:00:09]} 1-0


[Site "https://www.chess.com"]